[Event "Early-Titled-Tuesday-Blitz-January-23-2024"]
[Site "Chess.com"]
[Date "2024.01.23"]
[Round "3"]
[White "AwareIdea"]
[Black "NovakRatko"]
[Result "1-0"]
[WhiteElo "2536"]
[BlackElo "2349"]
[TimeControl "180+1"]
[EndTime "8:28:15 PST"]
[Termination "AwareIdea won on time"]

1. d4 {[%clk 0:02:54.1]} 1... d5 {[%clk 0:02:59.5]} 2. c4 {[%clk 0:02:54.1]}
2... c5 {[%clk 0:02:59.7]} 3. cxd5 {[%clk 0:02:53.8]} 3... Qxd5 {[%clk
0:03:00.6]} 4. Nf3 {[%clk 0:02:52.7]} 4... cxd4 {[%clk 0:03:00.5]} 5. Nc3 {[%clk
0:02:52.6]} 5... Qa5 {[%clk 0:03:00.7]} 6. Nxd4 {[%clk 0:02:51.5]} 6... e5
{[%clk 0:03:01.2]} 7. Nb3 {[%clk 0:02:51.2]} 7... Qc7 {[%clk 0:03:01.4]} 8. Bg5
{[%clk 0:02:42.6]} 8... Bb4 {[%clk 0:02:59.7]} 9. Rc1 {[%clk 0:02:42.2]} 9...
Nc6 {[%clk 0:02:58.9]} 10. a3 {[%clk 0:02:40.1]} 10... Bxc3+ {[%clk 0:02:58.9]}
11. Rxc3 {[%clk 0:02:40.1]} 11... Nge7 {[%clk 0:02:54.2]} 12. e3 {[%clk
0:02:34.8]} 12... f6 {[%clk 0:02:54.1]} 13. Bh4 {[%clk 0:02:24.7]} 13... O-O
{[%clk 0:02:54.2]} 14. Bc4+ {[%clk 0:02:20.1]} 14... Kh8 {[%clk 0:02:54.3]} 15.
O-O {[%clk 0:02:20.7]} 15... Rd8 {[%clk 0:02:54.3]} 16. Qh5 {[%clk 0:02:18]}
16... Bf5 {[%clk 0:02:52.2]} 17. Nc5 {[%clk 0:02:10.8]} 17... Bg6 {[%clk
0:02:50.1]} 18. Qg4 {[%clk 0:02:10]} 18... Rd2 {[%clk 0:02:45.9]} 19. b4 {[%clk
0:02:00.6]} 19... b6 {[%clk 0:02:42.2]} 20. Ne6 {[%clk 0:01:46.2]} 20... Qd6
{[%clk 0:02:37.1]} 21. f4 {[%clk 0:01:32.4]} 21... f5 {[%clk 0:02:27.9]} 22. Qg3
{[%clk 0:01:23.9]} 22... exf4 {[%clk 0:02:21.7]} 23. Nxf4 {[%clk 0:01:12.7]}
23... Ne5 {[%clk 0:01:37.1]} 24. Bb3 {[%clk 0:00:56.3]} 24... Rd8 {[%clk
0:01:12.7]} 25. h3 {[%clk 0:00:45.4]} 25... Bf7 {[%clk 0:00:51.3]} 26. Ba4
{[%clk 0:00:35.6]} 26... Rg8 {[%clk 0:00:36.1]} 27. Qg5 {[%clk 0:00:31.4]} 27...
N7g6 {[%clk 0:00:26.3]} 28. Nxg6+ {[%clk 0:00:30.3]} 28... Bxg6 {[%clk
0:00:25.3]} 29. Bg3 {[%clk 0:00:28.4]} 29... Nf7 {[%clk 0:00:18.8]} 30. Qh4
{[%clk 0:00:24.5]} 30... Qd5 {[%clk 0:00:18.5]} 31. Rf2 {[%clk 0:00:24]} 31...
Rxf2 {[%clk 0:00:17.7]} 32. Bxf2 {[%clk 0:00:24.4]} 32... Ne5 {[%clk 0:00:15.5]}
33. Qd4 {[%clk 0:00:23]} 33... Qxd4 {[%clk 0:00:14.8]} 34. exd4 {[%clk
0:00:23.9]} 34... Nf7 {[%clk 0:00:12.2]} 35. Bb3 {[%clk 0:00:23.9]} 35... Rd8
{[%clk 0:00:12.1]} 36. d5 {[%clk 0:00:23.9]} 36... Ng5 {[%clk 0:00:12.6]} 37.
Rc7 {[%clk 0:00:23.4]} 37... Ne4 {[%clk 0:00:11.7]} 38. Bd4 {[%clk 0:00:23.1]}
38... Nf6 {[%clk 0:00:10.7]} 39. Bxf6 {[%clk 0:00:21.6]} 39... gxf6 {[%clk
0:00:10.8]} 40. Rxa7 {[%clk 0:00:21.6]} 40... f4 {[%clk 0:00:10.7]} 41. Rb7
{[%clk 0:00:20.9]} 41... Be4 {[%clk 0:00:11.1]} 42. Rxb6 {[%clk 0:00:21]} 42...
Bxd5 {[%clk 0:00:11.6]} 43. Bxd5 {[%clk 0:00:21.1]} 43... Rxd5 {[%clk
0:00:12.5]} 44. Rxf6 {[%clk 0:00:21.6]} 44... Rd3 {[%clk 0:00:13]} 45. Rxf4
{[%clk 0:00:19.6]} 45... Rxa3 {[%clk 0:00:13.3]} 46. Rf3 {[%clk 0:00:19.3]}
46... Ra1+ {[%clk 0:00:12.9]} 47. Rf1 {[%clk 0:00:19.5]} 47... Rb1 {[%clk
0:00:13.8]} 48. Rxb1 {[%clk 0:00:19.6]} 1-0

[Event "Early-Titled-Tuesday-Blitz-January-23-2024"]
[Site "Chess.com"]
[Date "2024.01.23"]
[Round "3"]
[White "Dinosaurio_1975"]
[Black "MIss_MIaMI"]
[Result "1-0"]
[WhiteElo "2640"]
[BlackElo "2452"]
[TimeControl "180+1"]
[EndTime "8:28:16 PST"]
[Termination "Dinosaurio_1975 won on time"]

1. e4 {[%clk 0:03:00.9]} 1... c5 {[%clk 0:03:00.4]} 2. Nf3 {[%clk 0:02:59.6]}
2... e6 {[%clk 0:03:00.8]} 3. g3 {[%clk 0:02:59.2]} 3... Nc6 {[%clk 0:02:59.9]}
4. Bg2 {[%clk 0:02:59.4]} 4... a6 {[%clk 0:03:00.6]} 5. O-O {[%clk 0:02:59.4]}
5... d6 {[%clk 0:03:01.1]} 6. c3 {[%clk 0:02:58.5]} 6... Nf6 {[%clk 0:02:59.5]}
7. Re1 {[%clk 0:02:57.9]} 7... Be7 {[%clk 0:02:57.7]} 8. d4 {[%clk 0:02:58.3]}
8... O-O {[%clk 0:02:55.1]} 9. Qe2 {[%clk 0:02:46.3]} 9... e5 {[%clk 0:02:20.9]}
10. dxe5 {[%clk 0:02:33.8]} 10... Nxe5 {[%clk 0:02:16]} 11. Bf4 {[%clk
0:02:10.9]} 11... Qc7 {[%clk 0:02:04.3]} 12. Nbd2 {[%clk 0:02:07.4]} 12... Bg4
{[%clk 0:01:50.4]} 13. h3 {[%clk 0:02:06.4]} 13... Bh5 {[%clk 0:01:41.4]} 14.
Rad1 {[%clk 0:01:55.7]} 14... Rfd8 {[%clk 0:01:40.9]} 15. Nc4 {[%clk 0:01:52.3]}
15... Nfd7 {[%clk 0:01:25.4]} 16. Ne3 {[%clk 0:01:18.8]} 16... Nxf3+ {[%clk
0:01:22.8]} 17. Bxf3 {[%clk 0:01:19.7]} 17... Bxf3 {[%clk 0:01:23.4]} 18. Qxf3
{[%clk 0:01:20.6]} 18... Ne5 {[%clk 0:01:19.1]} 19. Bxe5 {[%clk 0:01:20.2]}
19... dxe5 {[%clk 0:01:20]} 20. Nd5 {[%clk 0:01:20.8]} 20... Qd6 {[%clk
0:01:17.2]} 21. Re2 {[%clk 0:01:16.6]} 21... Bg5 {[%clk 0:00:46.1]} 22. h4
{[%clk 0:01:15.6]} 22... Bh6 {[%clk 0:00:46.1]} 23. Ree1 {[%clk 0:01:15.1]}
23... Rac8 {[%clk 0:00:42]} 24. c4 {[%clk 0:01:04.9]} 24... Qe6 {[%clk
0:00:40.6]} 25. Rd3 {[%clk 0:01:01.6]} 25... Rd6 {[%clk 0:00:38.8]} 26. Red1
{[%clk 0:00:59.6]} 26... Rcd8 {[%clk 0:00:39.3]} 27. b3 {[%clk 0:00:38.9]} 27...
f6 {[%clk 0:00:34.5]} 28. Qe2 {[%clk 0:00:27.8]} 28... Qf7 {[%clk 0:00:33.6]}
29. Kg2 {[%clk 0:00:28.1]} 29... Kf8 {[%clk 0:00:32.8]} 30. Qe1 {[%clk
0:00:26.3]} 30... b6 {[%clk 0:00:30.9]} 31. Qc3 {[%clk 0:00:23]} 31... Qb7
{[%clk 0:00:31]} 32. a3 {[%clk 0:00:10.1]} 32... Kf7 {[%clk 0:00:26.3]} 33. b4
{[%clk 0:00:10.4]} 33... cxb4 {[%clk 0:00:20.7]} 34. axb4 {[%clk 0:00:11.3]}
34... g6 {[%clk 0:00:14.1]} 35. c5 {[%clk 0:00:11.4]} 35... bxc5 {[%clk
0:00:13.3]} 36. bxc5 {[%clk 0:00:12.3]} 36... Rc6 {[%clk 0:00:12.2]} 37. Qc4
{[%clk 0:00:11.8]} 37... Kg7 {[%clk 0:00:12.6]} 38. Rb3 {[%clk 0:00:11.4]} 38...
Qc8 {[%clk 0:00:11.7]} 39. Nb6 {[%clk 0:00:08.6]} 39... Qc7 {[%clk 0:00:10]} 40.
Rxd8 {[%clk 0:00:08.2]} 40... Qxd8 {[%clk 0:00:10.9]} 41. Rd3 {[%clk 0:00:07.2]}
41... Qe8 {[%clk 0:00:08.1]} 42. Rd7+ {[%clk 0:00:07.4]} 42... Kh8 {[%clk
0:00:08.7]} 43. Qd5 {[%clk 0:00:07.8]} 43... Rxc5 {[%clk 0:00:03.3]} 44. Qxc5
{[%clk 0:00:07.9]} 44... Bg7 {[%clk 0:00:02.9]} 45. Qd6 {[%clk 0:00:07.8]} 45...
Qg8 {[%clk 0:00:01.6]} 46. Rd8 {[%clk 0:00:07.9]} 46... Bf8 {[%clk 0:00:02.3]}
47. Rxf8 {[%clk 0:00:07.3]} 1-0

[Event "Early-Titled-Tuesday-Blitz-January-23-2024"]
[Site "Chess.com"]
[Date "2024.01.23"]
[Round "3"]
[White "Raud100"]
[Black "hakanazeri2"]
[Result "0-1"]
[WhiteElo "2389"]
[BlackElo "2580"]
[TimeControl "180+1"]
[EndTime "8:28:17 PST"]
[Termination "hakanazeri2 won by resignation"]

1. d4 {[%clk 0:03:00.9]} 1... Nf6 {[%clk 0:02:57.3]} 2. c4 {[%clk 0:03:01.4]}
2... c6 {[%clk 0:02:56.2]} 3. Nc3 {[%clk 0:03:01.4]} 3... d5 {[%clk 0:02:57.1]}
4. Nf3 {[%clk 0:03:02]} 4... dxc4 {[%clk 0:02:43.4]} 5. a4 {[%clk 0:03:02.3]}
5... Bf5 {[%clk 0:02:42]} 6. Ne5 {[%clk 0:03:02.9]} 6... e6 {[%clk 0:02:32.4]}
7. f3 {[%clk 0:03:02]} 7... Bb4 {[%clk 0:02:26]} 8. e4 {[%clk 0:03:02]} 8...
Bxe4 {[%clk 0:02:21.1]} 9. fxe4 {[%clk 0:03:01.7]} 9... Nxe4 {[%clk 0:02:22]}
10. Bd2 {[%clk 0:03:02.1]} 10... Qxd4 {[%clk 0:02:21]} 11. Nxe4 {[%clk
0:03:02.3]} 11... Qxe4+ {[%clk 0:02:21.3]} 12. Qe2 {[%clk 0:03:03]} 12... Bxd2+
{[%clk 0:02:21.6]} 13. Kxd2 {[%clk 0:03:03.9]} 13... Qd5+ {[%clk 0:02:22]} 14.
Kc2 {[%clk 0:03:04.4]} 14... Na6 {[%clk 0:02:19.4]} 15. Nxc4 {[%clk 0:03:04.9]}
15... O-O {[%clk 0:02:03.5]} 16. Qe5 {[%clk 0:03:04.2]} 16... Nb4+ {[%clk
0:01:25.5]} 17. Kb3 {[%clk 0:03:00.1]} 17... a5 {[%clk 0:01:18.2]} 18. Qxd5
{[%clk 0:02:59.4]} 18... Nxd5 {[%clk 0:01:07.5]} 19. Be2 {[%clk 0:02:53.7]}
19... b5 {[%clk 0:01:02.3]} 20. axb5 {[%clk 0:02:52.9]} 20... a4+ {[%clk
0:00:59]} 21. Ka3 {[%clk 0:02:20.5]} 21... cxb5 {[%clk 0:00:54.5]} 22. Ne5
{[%clk 0:02:20.5]} 22... b4+ {[%clk 0:00:53.9]} 23. Ka2 {[%clk 0:02:20.5]} 23...
b3+ {[%clk 0:00:50]} 24. Ka3 {[%clk 0:02:16.1]} 24... Ne3 {[%clk 0:00:48]} 25.
Bd3 {[%clk 0:01:59.8]} 25... Rfd8 {[%clk 0:00:42]} 26. Kb4 {[%clk 0:01:50.5]}
26... f6 {[%clk 0:00:34.8]} 27. Rxa4 {[%clk 0:01:37.2]} 27... Rxa4+ {[%clk
0:00:30.5]} 28. Kxa4 {[%clk 0:01:36.9]} 28... fxe5 {[%clk 0:00:31.1]} 29. Bb5
{[%clk 0:01:29.8]} 29... Nf5 {[%clk 0:00:16.1]} 30. Bc4 {[%clk 0:01:11.6]} 30...
Nd4 {[%clk 0:00:15.7]} 31. Kb4 {[%clk 0:00:55.6]} 31... Kf7 {[%clk 0:00:13.9]}
32. Kc3 {[%clk 0:00:48.3]} 32... Rc8 {[%clk 0:00:13.6]} 33. Re1 {[%clk
0:00:44.1]} 33... Kf6 {[%clk 0:00:12.5]} 34. Rf1+ {[%clk 0:00:43.9]} 34... Ke7
{[%clk 0:00:12.1]} 35. Ra1 {[%clk 0:00:39.2]} 35... Rc7 {[%clk 0:00:11.2]} 36.
Ra3 {[%clk 0:00:36.3]} 36... Nb5+ {[%clk 0:00:09.8]} 37. Kxb3 {[%clk 0:00:35.7]}
37... Nxa3 {[%clk 0:00:10.7]} 38. bxa3 {[%clk 0:00:34.7]} 38... e4 {[%clk
0:00:11.3]} 39. a4 {[%clk 0:00:33.4]} 39... Kd6 {[%clk 0:00:11.4]} 40. a5 {[%clk
0:00:33.4]} 40... Kc5 {[%clk 0:00:06.1]} 41. a6 {[%clk 0:00:31.5]} 41... Kd4
{[%clk 0:00:06.4]} 42. Bb5 {[%clk 0:00:27.7]} 42... e3 {[%clk 0:00:05.8]} 43.
Kb4 {[%clk 0:00:27.6]} 43... Rc1 {[%clk 0:00:04.1]} 44. a7 {[%clk 0:00:26.8]}
44... Ra1 {[%clk 0:00:03]} 45. Ba4 {[%clk 0:00:26.8]} 45... e2 {[%clk
0:00:03.3]} 46. a8=Q {[%clk 0:00:25.8]} 46... e1=Q+ {[%clk 0:00:03.7]} 47. Kb5
{[%clk 0:00:18.6]} 47... Qb1+ {[%clk 0:00:04.3]} 48. Kc6 {[%clk 0:00:18.8]}
48... Qe4+ {[%clk 0:00:04.2]} 49. Kd6 {[%clk 0:00:19.3]} 49... Qxa8 {[%clk
0:00:05.1]} 50. Bc6 {[%clk 0:00:19.6]} 50... Qd8+ {[%clk 0:00:05.2]} 51. Kxe6
{[%clk 0:00:20]} 51... Ra6 {[%clk 0:00:05.9]} 0-1

[Event "Early-Titled-Tuesday-Blitz-January-23-2024"]
[Site "Chess.com"]
[Date "2024.01.23"]
[Round "3"]
[White "Hamisandwich"]
[Black "knightinshiningarmour16"]
[Result "1-0"]
[WhiteElo "2702"]
[BlackElo "2213"]
[TimeControl "180+1"]
[EndTime "8:28:18 PST"]
[Termination "Hamisandwich won by resignation"]

1. e4 {[%clk 0:03:00.9]} 1... c6 {[%clk 0:02:58.8]} 2. Nc3 {[%clk 0:02:57.3]}
2... d5 {[%clk 0:02:59.5]} 3. Nf3 {[%clk 0:02:56.4]} 3... a6 {[%clk 0:02:59.4]}
4. d4 {[%clk 0:02:52.3]} 4... Bg4 {[%clk 0:02:56]} 5. h3 {[%clk 0:02:52.6]} 5...
Bxf3 {[%clk 0:02:40.4]} 6. Qxf3 {[%clk 0:02:52]} 6... dxe4 {[%clk 0:02:40.3]} 7.
Qxe4 {[%clk 0:02:50.5]} 7... Nf6 {[%clk 0:02:38.9]} 8. Qd3 {[%clk 0:02:47.4]}
8... e6 {[%clk 0:02:38.2]} 9. Bd2 {[%clk 0:02:44.6]} 9... Bd6 {[%clk 0:02:37.9]}
10. O-O-O {[%clk 0:02:44.2]} 10... Qc7 {[%clk 0:02:35]} 11. Ne2 {[%clk
0:02:35.9]} 11... Nbd7 {[%clk 0:02:33.8]} 12. g3 {[%clk 0:02:27]} 12... O-O-O
{[%clk 0:02:32.4]} 13. Bg2 {[%clk 0:02:27]} 13... Kb8 {[%clk 0:02:28.3]} 14. Kb1
{[%clk 0:02:26.2]} 14... Ka8 {[%clk 0:02:27]} 15. c4 {[%clk 0:02:19.2]} 15...
Rhe8 {[%clk 0:01:45.7]} 16. f4 {[%clk 0:02:05.5]} 16... c5 {[%clk 0:01:24.8]}
17. Be3 {[%clk 0:01:37.7]} 17... cxd4 {[%clk 0:01:23.5]} 18. Nxd4 {[%clk
0:01:27.7]} 18... Nc5 {[%clk 0:01:07.4]} 19. Qc2 {[%clk 0:01:25.5]} 19... g6
{[%clk 0:00:49.9]} 20. b4 {[%clk 0:01:24.4]} 20... Ncd7 {[%clk 0:00:46.5]} 21.
c5 {[%clk 0:01:24.4]} 21... Be7 {[%clk 0:00:41.5]} 22. c6 {[%clk 0:01:21]} 22...
bxc6 {[%clk 0:00:31.5]} 23. Qxc6+ {[%clk 0:00:44]} 23... Qxc6 {[%clk 0:00:16.2]}
24. Nxc6 {[%clk 0:00:44.9]} 24... Nd5 {[%clk 0:00:12.1]} 25. Nxd8 {[%clk
0:00:30.5]} 25... Rxd8 {[%clk 0:00:10.7]} 26. Bxd5+ {[%clk 0:00:26.6]} 26...
exd5 {[%clk 0:00:09.2]} 27. Rxd5 {[%clk 0:00:27.4]} 27... Nf6 {[%clk 0:00:10.1]}
28. Rxd8+ {[%clk 0:00:25.6]} 28... Bxd8 {[%clk 0:00:10.8]} 29. Bd4 {[%clk
0:00:22.6]} 29... Be7 {[%clk 0:00:09.6]} 30. Bxf6 {[%clk 0:00:22]} 30... Bxf6
{[%clk 0:00:10.2]} 31. Rd1 {[%clk 0:00:22.4]} 31... Kb7 {[%clk 0:00:10.7]} 32.
Rd7+ {[%clk 0:00:21.8]} 32... Kb6 {[%clk 0:00:11.3]} 33. Rxf7 {[%clk 0:00:22]}
33... Bc3 {[%clk 0:00:10.7]} 34. Rxh7 {[%clk 0:00:18.5]} 34... Bxb4 {[%clk
0:00:11]} 35. Rh6 {[%clk 0:00:18.7]} 35... Be1 {[%clk 0:00:11.9]} 36. Rxg6+
{[%clk 0:00:19.6]} 36... Kb5 {[%clk 0:00:12.1]} 37. h4 {[%clk 0:00:20.5]} 37...
a5 {[%clk 0:00:11.6]} 38. h5 {[%clk 0:00:20]} 38... Ka4 {[%clk 0:00:12.5]} 39.
f5 {[%clk 0:00:20.2]} 39... Ka3 {[%clk 0:00:12.5]} 40. f6 {[%clk 0:00:20.7]}
40... a4 {[%clk 0:00:13.1]} 41. f7 {[%clk 0:00:20.8]} 41... Bb4 {[%clk
0:00:13.8]} 42. Rg8 {[%clk 0:00:20.5]} 42... Bd6 {[%clk 0:00:10.4]} 43. f8=Q
{[%clk 0:00:19.5]} 43... Bxf8 {[%clk 0:00:10.7]} 44. Rxf8 {[%clk 0:00:20.4]}
44... Kb4 {[%clk 0:00:11.2]} 45. g4 {[%clk 0:00:21]} 45... Ka3 {[%clk
0:00:11.8]} 46. g5 {[%clk 0:00:21.9]} 46... Kb4 {[%clk 0:00:12.3]} 47. g6 {[%clk
0:00:22.8]} 47... Ka3 {[%clk 0:00:12.6]} 48. g7 {[%clk 0:00:23.7]} 48... Kb4
{[%clk 0:00:11.9]} 49. h6 {[%clk 0:00:24.6]} 49... Ka3 {[%clk 0:00:11.9]} 50. h7
{[%clk 0:00:25.5]} 50... Kb4 {[%clk 0:00:11.6]} 51. Rf3 {[%clk 0:00:25.3]} 1-0

[Event "Early-Titled-Tuesday-Blitz-January-23-2024"]
[Site "Chess.com"]
[Date "2024.01.23"]
[Round "3"]
[White "Zq1"]
[Black "FLYD"]
[Result "0-1"]
[WhiteElo "2519"]
[BlackElo "2101"]
[TimeControl "180+1"]
[EndTime "8:28:18 PST"]
[Termination "FLYD won on time"]

1. d4 {[%clk 0:03:00.9]} 1... Nf6 {[%clk 0:02:59.6]} 2. c4 {[%clk 0:03:00.3]}
2... a6 {[%clk 0:02:58.7]} 3. Nc3 {[%clk 0:02:57]} 3... c5 {[%clk 0:02:58.9]} 4.
dxc5 {[%clk 0:02:55.6]} 4... e6 {[%clk 0:02:54]} 5. e4 {[%clk 0:02:54.5]} 5...
Qc7 {[%clk 0:02:49.2]} 6. f4 {[%clk 0:02:52.6]} 6... Bxc5 {[%clk 0:02:25.4]} 7.
e5 {[%clk 0:02:46.1]} 7... Ng8 {[%clk 0:02:25.2]} 8. Nf3 {[%clk 0:02:40.4]} 8...
Ne7 {[%clk 0:02:24]} 9. Ne4 {[%clk 0:02:35.5]} 9... b6 {[%clk 0:02:15.9]} 10.
Nd6+ {[%clk 0:02:27.4]} 10... Kf8 {[%clk 0:02:13.8]} 11. Ng5 {[%clk 0:02:21.5]}
11... Bb4+ {[%clk 0:02:11.5]} 12. Kf2 {[%clk 0:02:05.9]} 12... Bc5+ {[%clk
0:01:56.9]} 13. Be3 {[%clk 0:01:54.5]} 13... Bxe3+ {[%clk 0:01:46]} 14. Kxe3
{[%clk 0:01:53.3]} 14... f6 {[%clk 0:01:09.9]} 15. Ngf7 {[%clk 0:01:38.7]} 15...
Rg8 {[%clk 0:00:56.1]} 16. Bd3 {[%clk 0:01:36.7]} 16... Qc5+ {[%clk 0:00:41.3]}
17. Ke2 {[%clk 0:01:35.4]} 17... Ng6 {[%clk 0:00:34.9]} 18. Bxg6 {[%clk
0:01:26.9]} 18... hxg6 {[%clk 0:00:34.5]} 19. Qd3 {[%clk 0:01:10]} 19... Nc6
{[%clk 0:00:24.4]} 20. Qe3 {[%clk 0:01:04.3]} 20... Nd4+ {[%clk 0:00:21.8]} 21.
Kf2 {[%clk 0:01:01.3]} 21... g5 {[%clk 0:00:20.2]} 22. g3 {[%clk 0:00:54.4]}
22... gxf4 {[%clk 0:00:19.8]} 23. gxf4 {[%clk 0:00:54.2]} 23... fxe5 {[%clk
0:00:20.3]} 24. fxe5 {[%clk 0:00:50.4]} 24... Nf5 {[%clk 0:00:20.5]} 25. Nxf5
{[%clk 0:00:45]} 25... exf5 {[%clk 0:00:19.6]} 26. Nd6 {[%clk 0:00:32.1]} 26...
g6 {[%clk 0:00:19.3]} 27. b4 {[%clk 0:00:20.3]} 27... Qxe3+ {[%clk 0:00:18.7]}
28. Kxe3 {[%clk 0:00:20.4]} 28... Rh8 {[%clk 0:00:19.2]} 29. h4 {[%clk
0:00:19.1]} 29... Ke7 {[%clk 0:00:18.6]} 30. Rag1 {[%clk 0:00:16.1]} 30... Rh6
{[%clk 0:00:16.8]} 31. h5 {[%clk 0:00:12.5]} 31... Rxh5 {[%clk 0:00:17.1]} 32.
Rxh5 {[%clk 0:00:11.6]} 32... gxh5 {[%clk 0:00:18]} 33. Rg7+ {[%clk 0:00:08.9]}
33... Ke6 {[%clk 0:00:17.9]} 34. Kf4 {[%clk 0:00:09.2]} 34... b5 {[%clk
0:00:15.7]} 35. Nxf5 {[%clk 0:00:08.7]} 35... bxc4 {[%clk 0:00:14.3]} 36. Rg6+
{[%clk 0:00:04.4]} 36... Kf7 {[%clk 0:00:13.5]} 37. Rd6 {[%clk 0:00:04.3]} 37...
Rb8 {[%clk 0:00:12.4]} 38. a3 {[%clk 0:00:03.2]} 38... a5 {[%clk 0:00:13]} 39.
Ne3 {[%clk 0:00:03]} 39... axb4 {[%clk 0:00:12.7]} 40. axb4 {[%clk 0:00:03.6]}
40... Rxb4 {[%clk 0:00:13.2]} 41. Nd5 {[%clk 0:00:03.9]} 41... c3+ {[%clk
0:00:10.9]} 42. Kf5 {[%clk 0:00:02.9]} 42... Rc4 {[%clk 0:00:07.9]} 43. Rf6+
{[%clk 0:00:03.1]} 43... Ke8 {[%clk 0:00:08.3]} 44. Rh6 {[%clk 0:00:02.6]} 44...
c2 {[%clk 0:00:07.7]} 45. Rh8+ {[%clk 0:00:02.6]} 45... Kf7 {[%clk 0:00:08]} 46.
Rh7+ {[%clk 0:00:02.9]} 46... Kf8 {[%clk 0:00:08.3]} 47. Kg6 {[%clk 0:00:02.6]}
47... Rg4+ {[%clk 0:00:06.5]} 48. Kf5 {[%clk 0:00:02.1]} 48... c1=Q {[%clk
0:00:06.2]} 49. Rh8+ {[%clk 0:00:02.3]} 49... Kg7 {[%clk 0:00:06.5]} 0-1

[Event "Early-Titled-Tuesday-Blitz-January-23-2024"]
[Site "Chess.com"]
[Date "2024.01.23"]
[Round "3"]
[White "kingofthenil"]
[Black "ilqar_74"]
[Result "1-0"]
[WhiteElo "2674"]
[BlackElo "2891"]
[TimeControl "180+1"]
[EndTime "8:28:20 PST"]
[Termination "kingofthenil won by checkmate"]

1. e4 {[%clk 0:02:52.6]} 1... c5 {[%clk 0:02:59.9]} 2. Nf3 {[%clk 0:02:49.2]}
2... d6 {[%clk 0:03:00.6]} 3. d4 {[%clk 0:02:49.7]} 3... cxd4 {[%clk 0:03:01.5]}
4. Nxd4 {[%clk 0:02:50.6]} 4... Nf6 {[%clk 0:03:01.8]} 5. Nc3 {[%clk 0:02:51.2]}
5... e5 {[%clk 0:03:02.4]} 6. Bb5+ {[%clk 0:02:50.1]} 6... Bd7 {[%clk
0:03:02.5]} 7. Bxd7+ {[%clk 0:02:47.5]} 7... Qxd7 {[%clk 0:03:03.4]} 8. Nf3
{[%clk 0:02:42.7]} 8... Qc6 {[%clk 0:03:02.9]} 9. Qd3 {[%clk 0:02:40.9]} 9...
Nbd7 {[%clk 0:03:03]} 10. Be3 {[%clk 0:02:40.7]} 10... Be7 {[%clk 0:03:00]} 11.
O-O {[%clk 0:02:36.3]} 11... O-O {[%clk 0:03:00]} 12. Nd2 {[%clk 0:02:35.1]}
12... Rfc8 {[%clk 0:02:57.8]} 13. a4 {[%clk 0:02:29.1]} 13... b6 {[%clk
0:02:53.9]} 14. f3 {[%clk 0:02:25.5]} 14... a6 {[%clk 0:02:53.1]} 15. Nb3 {[%clk
0:02:09]} 15... h6 {[%clk 0:02:48]} 16. Rfd1 {[%clk 0:02:08.5]} 16... Nf8 {[%clk
0:02:45.8]} 17. Nc1 {[%clk 0:01:46.4]} 17... Ng6 {[%clk 0:02:35.2]} 18. N1a2
{[%clk 0:01:46.4]} 18... a5 {[%clk 0:02:25.2]} 19. Nc1 {[%clk 0:01:41.9]} 19...
Nf4 {[%clk 0:02:23.8]} 20. Bxf4 {[%clk 0:01:41.3]} 20... exf4 {[%clk 0:02:24.1]}
21. N1e2 {[%clk 0:01:41.7]} 21... Qc5+ {[%clk 0:02:19.9]} 22. Kh1 {[%clk
0:01:40.7]} 22... Qe5 {[%clk 0:02:14.1]} 23. Qb5 {[%clk 0:01:30.7]} 23... Rab8
{[%clk 0:02:01.4]} 24. Rd2 {[%clk 0:01:12.2]} 24... Rc5 {[%clk 0:01:58.3]} 25.
Qb3 {[%clk 0:01:12.7]} 25... g6 {[%clk 0:01:54.3]} 26. Rad1 {[%clk 0:01:12.8]}
26... Kg7 {[%clk 0:01:46.8]} 27. Nd5 {[%clk 0:01:07.5]} 27... Nxd5 {[%clk
0:01:32.7]} 28. Rxd5 {[%clk 0:01:07.3]} 28... Qf6 {[%clk 0:01:32.5]} 29. Nd4
{[%clk 0:00:50.6]} 29... Rbc8 {[%clk 0:01:26.5]} 30. c3 {[%clk 0:00:48.7]} 30...
Rxd5 {[%clk 0:01:12.9]} 31. Qxd5 {[%clk 0:00:49.6]} 31... Rc5 {[%clk 0:01:11.4]}
32. Qb7 {[%clk 0:00:46.5]} 32... Rh5 {[%clk 0:01:02.7]} 33. h3 {[%clk
0:00:40.6]} 33... Bf8 {[%clk 0:00:58.2]} 34. Qxb6 {[%clk 0:00:26.8]} 34... Qg5
{[%clk 0:00:50.6]} 35. Ne2 {[%clk 0:00:24.5]} 35... Qh4 {[%clk 0:00:45.1]} 36.
Qd4+ {[%clk 0:00:17.4]} 36... Kg8 {[%clk 0:00:42.9]} 37. b4 {[%clk 0:00:18.3]}
37... Bg7 {[%clk 0:00:39.3]} 38. Qxd6 {[%clk 0:00:17.3]} 38... Kh7 {[%clk
0:00:33.6]} 39. Qxf4 {[%clk 0:00:15.9]} 39... Qf2 {[%clk 0:00:32.4]} 40. Ng1
{[%clk 0:00:05.6]} 40... Rg5 {[%clk 0:00:28.2]} 41. Rd2 {[%clk 0:00:04.4]} 41...
Qe1 {[%clk 0:00:20.2]} 42. Re2 {[%clk 0:00:04.4]} 42... Qxc3 {[%clk 0:00:19.6]}
43. bxa5 {[%clk 0:00:04.2]} 43... Qxa5 {[%clk 0:00:20.3]} 44. Qxf7 {[%clk
0:00:04.1]} 44... Qxa4 {[%clk 0:00:19]} 45. f4 {[%clk 0:00:03.8]} 45... Rg3
{[%clk 0:00:17.6]} 46. f5 {[%clk 0:00:03.7]} 46... Qd1 {[%clk 0:00:17.8]} 47. f6
{[%clk 0:00:03.1]} 47... Qd4 {[%clk 0:00:09.9]} 48. Qxg7# {[%clk 0:00:03]} 1-0